Cogmind - Beta 13 @@@ ROGUE MODE // 2024.04.22 @ 20:24:48 Player: NOGames Result: Destroyed by P-70 Sage with High-powered Shock Rifle Performance ------------- Evolutions (6) 3000 Regions Visited (13) 2600 Robots Destroyed (90) 450 Value Destroyed (3297) 3297 Prototype IDs (24) 480 Alien Tech Used (0) 0 Bonus (347) 347 TOTAL SCORE: 10174 Bonus ------- Follower Combat Kills 203 Aligned with FarCom 300 Friendly Fire -156 Cogmind --------- Core Integrity 0/1150 Matter 212/300 Energy 98/100 System Corruption 11% Temperature Cool (0) Movement Core (50) Location -4/Factory Parts ------- > --- POWER (2) -------- (None) > --- PROPULSION (4) --- (None) > --- UTILITY (9) ------ Advanced Coolant Injector Advanced Signal Interpreter Core Analyzer > --- WEAPON (4) ------- (None) > --- INVENTORY (5) ---- Micro Fission Core Carbon-fiber Leg Advanced Signal Interpreter Improved Target Analyzer Advanced Particle Charger Peak State ------------ > --- POWER ------------ Micro Fission Core Improved Fusion Compressor > --- PROPULSION ------- Enhanced Flexi-carbon Leg Enhanced Flexi-carbon Leg Enhanced Flexi-carbon Leg Enhanced Flexi-carbon Leg > --- UTILITY ---------- Advanced Heat Sink Advanced Cooling System Advanced Coolant Injector Large Storage Unit Advanced Signal Interpreter Core Analyzer Advanced Transmission Jammer Hacking Suite System Shield > --- WEAPON ----------- Improved EM Pulse Cannon HERF Cannon Heavy Ion Cannon Heavy Mace > --- INVENTORY -------- Nuclear Core Improved Deuterium Engine Fission Core Fission Core Fusion Compressor Micro Fission Core Carbon-fiber Leg Flexi-carbon Leg Enhanced Flexi-carbon Leg Enhanced Flexi-carbon Leg Improved Signal Interpreter Advanced Signal Interpreter Recoil Nullifier HERF Cannon Long-range Missile Launcher [Rating: 107] Favorites ----------- Power Light Angular Momentum Engine Engine Light Angular Momentum Engine Power Core Neutrino Core Reactor Light Antimatter Reactor Propulsion Carbon-fiber Leg Treads Light Treads Leg Carbon-fiber Leg Utility Large Storage Unit Device Cooling System Storage Large Storage Unit Processor Advanced Signal Interpreter Hackware System Shield Protection Hardened Medium Armor Plating Weapon Heavy Ion Cannon Energy Gun Particle Gun Energy Cannon Heavy Ion Cannon Ballistic Gun Minigun Ballistic Cannon Improved Light Cannon Launcher Mini Grenade Launcher Impact Weapon Power Maul Build | -11 -10 -10 -9 -9 -9 -8 -8 -7 -6 -5 -5 -5 -4 ------- Run | Yrd Mat Min Mat Min Exi Min Mat Fac Fac Fac Upp Upp Fac Slots Evolved 12 | . . . 2 . . . 2 2 2 2 . . 2 Power 1 | . . . . . . . . . 1 . . . . Propulsion 2 | . . . . . . . 1 . . 1 . . . Utility 7 | . . . 1 . . . . 2 1 1 . . 2 Weapon 2 | . . . 1 . . . 1 . . . . . . Parts Attached 104 | 2 5 7 7 1 1 3 5 7 7 26 9 4 20 Power 16 | . 1 1 . 1 . . . . 2 5 1 . 5 Engine 8 | . 1 . . 1 . . . . 2 2 1 . 1 Core 7 | . . 1 . . . . . . . 2 . . 4 Reactor 1 | . . . . . . . . . . 1 . . . Propulsion 27 | 2 . 2 2 . . . 4 . . 14 . . 3 Treads 5 | 2 . . 2 . . . 1 . . . . . . Leg 22 | . . 2 . . . . 3 . . 14 . . 3 Wheel . | . . . . . . . . . . . . . . Hover . | . . . . . . . . . . . . . . Flight . | . . . . . . . . . . . . . . Utility 27 | . 2 2 2 . . . . 3 3 5 4 1 5 Device 17 | . 1 . 2 . . . . . 1 5 3 1 4 Storage 1 | . 1 . . . . . . . . . . . . Processor 3 | . . . . . . . . . 2 . . . 1 Hackware 2 | . . . . . . . . 2 . . . . . Protection 4 | . . 2 . . . . . 1 . . 1 . . Artifact . | . . . . . . . . . . . . . . Weapon 34 | . 2 2 3 . 1 3 1 4 2 2 4 3 7 Energy Gun 3 | . . 1 1 . . . . . . . . . 1 Energy Cannon 12 | . 1 . . . . . . 3 . 2 2 1 3 Ballistic Gun 2 | . 1 1 . . . . . . . . . . . Ballistic Cannon 5 | . . . 2 . 1 2 . . . . . . . Launcher 5 | . . . . . . 1 . . 1 . 1 1 1 Special Weapon . | . . . . . . . . . . . . . . Impact Weapon 7 | . . . . . . . 1 1 1 . 1 1 2 Slashing Weapon . | . . . . . . . . . . . . . . Piercing Weapon . | . . . . . . . . . . . . . . Special Melee Weapon . | . . . . . . . . . . . . . . Unidentified Prototypes 1 | . . . . . . . . . . 1 . . . Parts Lost 49 | . 1 2 . . . . . 2 2 7 7 1 27 Power 10 | . 1 . . . . . . . 1 2 1 . 5 Propulsion 10 | . . 2 . . . . . . . 1 . . 7 Utility 14 | . . . . . . . . 1 1 2 3 . 7 Weapon 15 | . . . . . . . . 1 . 2 3 1 8 Highest Loss Streak 22 | . 1 2 . . . . . 2 2 2 5 1 22 To Critical Strikes 1 | . . . . . . . . . . . 1 . . Average Slot Usage (%) 96 | . 89 99 99 100 88 98 100 95 98 99 96 97 91 Engine 6 | . 8 . . 5 11 11 9 7 12 7 2 5 3 Core 3 | . . 13 11 5 . . . . . 2 5 5 4 Treads 7 | . 28 18 13 22 22 22 3 . . . . . . Leg 15 | . . 8 8 . . . 23 23 20 22 23 23 19 Device 9 | . 9 . 10 11 11 11 9 7 7 9 10 11 17 Storage 8 | . 14 14 11 11 11 11 9 7 6 5 5 5 4 Processor 3 | . . . . . . . . . 3 11 7 5 10 Hackware 6 | . . . . . . . . 14 13 11 11 11 9 Protection 6 | . . 13 11 11 11 11 9 6 6 . 2 5 1 Energy Cannon 11 | . 3 14 11 11 5 . . 5 20 16 14 14 13 Ballistic Gun 2 | . 19 13 8 . . . . . . . . . . Ballistic Cannon 5 | . . . 5 22 16 21 18 8 . . . . . Launcher 1 | . . . . . . 10 9 2 . . . 3 . Impact Weapon 3 | . . . . . . . 9 10 5 5 4 1 4 Naked Turns . | . . . . . . . . . . . . . . Heaviest Build 99 | 10 31 39 46 50 99 48 51 60 71 77 79 77 81 Greatest Support 112 | 40 40 40 40 40 40 40 60 45 45 112 84 84 112 Greatest Overweight (x) 2 | . . 1 2 1 2 1 1 1 1 1 . . 1 Average Overweight (x) . | . . . 1 1 1 1 . . 1 . . . . Largest Inventory Capacity 15 | 8 15 15 15 15 15 15 15 15 15 15 15 15 15 Average Capacity 14 | 8 14 15 15 15 15 15 15 15 15 15 15 15 14 Most Carried 15 | 6 14 15 15 15 15 15 15 15 15 15 15 13 15 Average Carried 13 | 6 8 14 14 15 14 14 14 13 14 14 12 11 13 Final Capacity 15 | 8 15 15 15 15 15 15 15 15 15 15 15 15 5 Final Carried 15 | 6 14 15 15 15 14 15 15 15 15 15 11 13 5 Class Distribution -------------------- 29% | Hacker-Skirmisher 15% | Tank 15% | Mutant 13% | Skirmisher 8% | Scavenger-Tank 7% | Scavenger-Skirmisher 4% | Scavenger-Mutant Dominant Class ---------------- Mutant | -10/Materials Mutant | -10/Mines Tank | -9/Materials Tank | -9/Mines Tank | -9/Exiles Skirmisher | -8/Mines Skirmisher | -8/Materials Hacker-Skirmisher | -7/Factory Hacker-Skirmisher | -6/Factory Hacker-Skirmisher | -5/Factory Hacker-Skirmisher | -5/Upper Caves Scavenger-Tank | -5/Upper Caves Hacker-Skirmisher | -4/Factory Resources | -11 -10 -10 -9 -9 -9 -8 -8 -7 -6 -5 -5 -5 -4 ----------- Run | Yrd Mat Min Mat Min Exi Min Mat Fac Fac Fac Upp Upp Fac Matter Collected 2326 | 220 127 107 121 23 . 61 192 163 71 259 245 97 640 Remotely . | . . . . . . . . . . . . . . Salvage Created 3902 | . 254 207 90 57 . 34 313 147 82 1424 442 66 786 Parts 173 | . 25 10 3 1 . 8 18 12 11 28 13 8 36 Haulers Intercepted 5 | . 1 . 2 . . . . . . 2 . . . Recyclers Shooed 1 | . . . . . . . 1 . . . . . . Parts Field Recycled . | . . . . . . . . . . . . . . Retrieved Matter . | . . . . . . . . . . . . . . Parts Self-Destructed 12 | . . . . . . . . . . . 4 8 . Prevented 4 | . . . . . . . . . . . . 4 . Kills | -11 -10 -10 -9 -9 -9 -8 -8 -7 -6 -5 -5 -5 -4 ------- Run | Yrd Mat Min Mat Min Exi Min Mat Fac Fac Fac Upp Upp Fac Combat Hostiles Destroyed 67 | . 7 5 . . . 3 9 4 4 13 8 5 9 Guns 9 | . 7 2 . . . . . . . . . . . Cannons 43 | . . 3 . . . 1 9 3 2 13 5 2 5 AOE 11 | . . . . . . 2 . . 2 . 1 3 3 Classes Destroyed 13 | . 4 . . 1 . 1 3 1 . 1 1 . 1 Worker 4 | . . . . . . . 1 . . . . . 3 Builder 2 | . . . . . . . . . . . . . 2 Tunneler 1 | . . . . . . 1 . . . . . . . Hauler 5 | . 1 . 2 . . . . . . 2 . . . Recycler 6 | . . . . 1 . . 1 . . 3 . . 1 Operator 1 | . 1 . . . . . . . . . . . . Watcher 3 | . . . . . . . 2 . . 1 . . . Swarmer 19 | . 3 . . . . 3 3 1 3 . 1 5 . Grunt 26 | . 4 4 . . . . 5 2 . 8 1 . 2 Sentry 5 | . . . . . . . 2 . . . 1 . 2 Hunter 3 | . . . . . . . . . . 1 . . 2 Programmer 10 | . . . . . . . . 1 1 4 1 . 3 Thug 1 | . . . . . . . . . . . 1 . . Savage 3 | . . . . . . . . . . . 3 . . Best Kill Streak 7 | . 3 2 1 1 . 3 4 3 2 4 3 5 7 Combat Bots Only 5 | . 3 2 . . . 3 4 3 2 2 3 5 4 Max Kills in Single Turn 4 | . 2 2 1 1 . 3 1 1 2 1 1 2 4 Gunslinging . | . . . . . . . . . . . . . . Exploded 2 | . . . . . . 2 . . 2 . 1 2 2 Melee . | . . . . . . . . . . . . . . Uniques/NPCs Destroyed 1 | . . 1 . . . . . . . . . . . YI-UF0 (-10/Mines) Combat | -11 -10 -10 -9 -9 -9 -8 -8 -7 -6 -5 -5 -5 -4 -------- Run | Yrd Mat Min Mat Min Exi Min Mat Fac Fac Fac Upp Upp Fac Hostile Shots Fired 633 | . 43 23 1 1 . 2 44 36 18 79 37 10 339 Missed 191 | . 8 5 . . . 1 18 5 3 18 9 4 120 Damage Taken 8190 | . 414 525 22 16 . 6 401 478 388 1180 893 89 3778 Core 1758 | . 57 87 . . . . 60 109 14 203 63 . 1165 Absorbed by Shields . | . . . . . . . . . . . . . . Redirected to Shielding 86 | . . . . . . . . 20 32 34 . . . Core Remaining (%) 83 | 100 . 42 . . . 100 89 84 98 . . 73 . Volleys Fired 183 | . 33 12 11 1 . 3 21 8 4 41 21 4 24 Largest 4 | . 2 2 3 3 . 3 3 3 3 3 3 3 4 Hottest 310 | . 80 85 150 138 . 108 108 195 195 195 220 185 310 Shots Fired 437 | . 66 24 33 3 . 7 53 10 8 120 52 12 49 Gun 94 | . 64 12 16 . . . . . . . . . 2 Cannon 321 | . 2 12 17 3 . 6 42 10 6 120 49 9 45 Launcher 22 | . . . . . . 1 11 . 2 . 3 3 2 Special . | . . . . . . . . . . . . . . Kinetic 131 | . 48 12 14 2 . 6 42 7 . . . . . Thermal 259 | . 18 12 19 1 . . . 3 6 120 49 9 22 Explosive 22 | . . . . . . 1 11 . 2 . 3 3 2 Electromagnetic 25 | . . . . . . . . . . . . . 25 Robot Hit Streak 18 | . 12 12 13 1 . 2 9 9 1 17 13 8 18 Robot Miss Streak 4 | . 3 3 2 2 . 1 2 2 1 4 2 1 2 Penetration Max . | . . . . . . . . . . . . . . Secondary Targets . | . . . . . . . . . . . . . . Shots Hit Robots 308 | . 43 15 25 1 . 4 33 8 2 88 39 7 43 Core Hits 138 | . 17 9 3 1 . 4 20 4 6 29 13 6 26 Critical Kills 2 | . . . . . . . . . . 1 . . 1 Critical Parts Destroyed 6 | . . . . . . . 3 . . 2 . . 1 Critical Strikes 18 | . . . 3 . . 1 9 . . 3 . . 2 Burn 1 | . . . 1 . . . . . . . . . . Blast 9 | . . . 2 . . 1 6 . . . . . . Smash 8 | . . . . . . . 3 . . 3 . . 2 Melee Attacks 56 | . . . . . . . 17 5 3 13 . . 18 Impact 56 | . . . . . . . 17 5 3 13 . . 18 Slashing . | . . . . . . . . . . . . . . Piercing . | . . . . . . . . . . . . . . Sneak Attacks 14 | . . . . . . . 4 . . 6 . . 4 Combat Hostiles . | . . . . . . . . . . . . . . Follow-up Attacks 1 | . . . . . . . . 1 . . . . . Damage Inflicted 9779 | . 468 287 449 19 . 178 1265 243 201 3003 1183 432 2051 Guns 813 | . 451 113 223 . . . . . . . . . 26 Cannons 5371 | . 17 174 226 19 . 94 510 158 59 2249 1041 138 686 Explosions 1649 | . . . . . . 84 304 . 142 . 142 294 683 Melee 1946 | . . . . . . . 451 85 . 754 . . 656 Ramming . | . . . . . . . . . . . . . . Kinetic 1404 | . 331 113 211 19 . 94 510 126 . . . . . Thermal 4534 | . 137 174 238 . . . . 32 59 2249 1041 138 466 Explosive 1649 | . . . . . . 84 304 . 142 . 142 294 683 Electromagnetic 246 | . . . . . . . . . . . . . 246 Impact 1946 | . . . . . . . 451 85 . 754 . . 656 Slashing . | . . . . . . . . . . . . . . Piercing . | . . . . . . . . . . . . . . Highest Corruption 16 | . . . . . . . . . . 4 16 16 11 Average Corruption 8 | . . . . . . . . . . 2 10 16 6 Corruption Purged . | . . . . . . . . . . . . . . Corruption Blocked . | . . . . . . . . . . . . . . Effects 92 | . . . . . . . . . . 13 30 27 22 Message Errors 22 | . . . . . . . . . . 4 7 6 5 Matter Fused 28 | . . . . . . . . . . 1 12 9 6 Heat Flow Errors 9 | . . . . . . . . . . 1 3 4 1 Energy Discharges 11 | . . . . . . . . . . 3 1 4 3 Parts Fused 1 | . . . . . . . . . . . 1 . . Data Loss (minor) 8 | . . . . . . . . . . 2 4 1 1 Data Loss (major) 2 | . . . . . . . . . . . . . 2 Misfires 5 | . . . . . . . . . . . 1 2 2 Alerts 3 | . . . . . . . . . . 2 1 . . Misdirections 1 | . . . . . . . . . . . . 1 . Weapon Failures 2 | . . . . . . . . . . . . . 2 Overload Shots . | . . . . . . . . . . . . . . Overflow Damage 1205 | . . . . . . 21 335 . 20 412 36 28 353 Projectiles 80 | . . . . . . . . . . 29 5 7 39 Explosions 210 | . . . . . . 21 2 . 20 . 31 21 115 Melee 915 | . . . . . . . 333 . . 383 . . 199 Knockbacks 25 | . . . 1 . . 2 10 4 . 2 . . 6 Impact 13 | . . . . . . . 3 2 . 2 . . 6 Kinetic 9 | . . . 1 . . 2 5 1 . . . . . Secondary 3 | . . . . . . . 2 1 . . . . . Self-Inflicted Damage 333 | . . . . . . . 74 . 151 . . . 108 Shots 7 | . . . . . . . 3 . 2 . . . 2 Rammed . | . . . . . . . . . . . . . . Targets Rammed . | . . . . . . . . . . . . . . Kicked . | . . . . . . . . . . . . . . Crushed . | . . . . . . . . . . . . . . Highest Temperature 419 | . 248 286 72 24 . . 12 48 84 199 395 419 90 Average Temperature 115 | . 139 121 32 16 . . 6 24 46 123 147 142 22 Received Heat Transfer 1440 | . 234 72 12 9 . . 153 153 . 375 99 . 333 Effects 2 | . 1 . . . . . . . . . . 1 . Shutdowns 1 | . . . . . . . . . . . . 1 . Interference 1 | . 1 . . . . . . . . . . . . Siege Activations . | . . . . . . . . . . . . . . Robots Corrupted . | . . . . . . . . . . . . . . Combat Hostiles . | . . . . . . . . . . . . . . Parts Fried 20 | . . . . . . . 3 1 . 13 . . 3 Impact Corruptions 26 | . . . . . . . 11 1 . 9 . . 5 Robots Melted 2 | . . . . . . . . . . . 2 . . Combat Hostiles 2 | . . . . . . . . . . . 2 . . Parts Melted 12 | . 2 . . . . . . . . 7 2 . 1 Heat Transferred 6456 | . 312 370 592 . . . . 37 74 2923 1395 198 555 Parts Sabotaged . | . . . . . . . . . . . . . . Parts Stolen . | . . . . . . . . . . . . . . Parts Stripped . | . . . . . . . . . . . . . . Power Chain Reactions . | . . . . . . . . . . . . . . Alert | -11 -10 -10 -9 -9 -9 -8 -8 -7 -6 -5 -5 -5 -4 ------- Run | Yrd Mat Min Mat Min Exi Min Mat Fac Fac Fac Upp Upp Fac Peak Influence 285 | . 186 90 100 39 . 91 285 201 190 178 . . 140 Initial 129 | . . 25 15 12 . . 35 129 . . . . . Average 73 | . 71 63 44 14 . 24 121 142 56 85 . . 65 Maximum Alert Level 1 | . . . . . . . 1 1 . . . . . Low Security (%) 94 | 100 100 100 100 100 . 100 64 95 100 100 . . 100 Level 1 5 | . . . . . . . 35 4 . . . . . Level 2 . | . . . . . . . . . . . . . . Level 3 . | . . . . . . . . . . . . . . Level 4 . | . . . . . . . . . . . . . . Level 5 . | . . . . . . . . . . . . . . High Security . | . . . . . . . . . . . . . . Max Security . | . . . . . . . . . . . . . . Squads Dispatched 11 | . 2 . . . . . 1 . 1 5 . . 2 Investigation 3 | . 1 . . . . . 1 . . 1 . . . Extermination 5 | . . . . . . . . . 1 2 . . 2 Reinforcement 3 | . 1 . . . . . . . . 2 . . . Assault . | . . . . . . . . . . . . . . Garrison . | . . . . . . . . . . . . . . Intercept . | . . . . . . . . . . . . . . Searches Triggered . | . . . . . . . . . . . . . . Construction Impeded . | . . . . . . . . . . . . . . Haulers Reinforced 1 | . . . . . . . . . . 1 . . . Active Scanning Responses . | . . . . . . . . . . . . . . Cargo Convoy Interrupts . | . . . . . . . . . . . . . . Stealth | -11 -10 -10 -9 -9 -9 -8 -8 -7 -6 -5 -5 -5 -4 --------- Run | Yrd Mat Min Mat Min Exi Min Mat Fac Fac Fac Upp Upp Fac Distress Signals 5 | . 3 . . . . . 1 . . . . . 1 Communications Jammed 17 | . . . . . . . . . . . . . 17 Distress Signals 17 | . . . . . . . . . . . . . 17 Times Spotted 119 | . 13 5 6 2 . 2 23 4 4 21 8 5 26 Peak Tracking Total 10 | . 5 2 1 2 . 3 6 3 3 3 4 5 10 Tactical Retreats 5 | . . . . . . . 1 . . 2 . . 2 Traps | -11 -10 -10 -9 -9 -9 -8 -8 -7 -6 -5 -5 -5 -4 ------- Run | Yrd Mat Min Mat Min Exi Min Mat Fac Fac Fac Upp Upp Fac Traps Triggered 5 | . 1 . . . . . 1 1 . 1 . . 1 Indirectly . | . . . . . . . . . . . . . . Trap Hack Attempts . | . . . . . . . . . . . . . . Triggered . | . . . . . . . . . . . . . . Disarmed . | . . . . . . . . . . . . . . Reprogrammed . | . . . . . . . . . . . . . . Reused . | . . . . . . . . . . . . . . Traps Extracted . | . . . . . . . . . . . . . . Installed . | . . . . . . . . . . . . . . Triggered 2 | . . . . . . . . . . . . 2 . Machines | -11 -10 -10 -9 -9 -9 -8 -8 -7 -6 -5 -5 -5 -4 ---------- Run | Yrd Mat Min Mat Min Exi Min Mat Fac Fac Fac Upp Upp Fac Machines Disabled 16 | . 1 . . . . . 4 . 7 3 . . 1 Max in Single Turn 5 | . 1 . . . . . 2 . 5 1 . . 1 Garrison Access 4 | . . . . . . . . 1 1 . . . 2 Machines Repaired . | . . . . . . . . . . . . . . Machines Dismantled . | . . . . . . . . . . . . . . Machines Sabotaged . | . . . . . . . . . . . . . . Overloaded Fab Kills . | . . . . . . . . . . . . . . Hacking | -11 -10 -10 -9 -9 -9 -8 -8 -7 -6 -5 -5 -5 -4 --------- Run | Yrd Mat Min Mat Min Exi Min Mat Fac Fac Fac Upp Upp Fac Machines Accessed 26 | . 5 1 . . 2 . 2 1 5 5 . . 5 Terminals 19 | . 5 . . . . . 2 . 4 5 . . 3 Fabricators . | . . . . . . . . . . . . . . Repair Stations . | . . . . . . . . . . . . . . Recycling Units . | . . . . . . . . . . . . . . Scanalyzers . | . . . . . . . . . . . . . . Garrison Access 4 | . . . . . . . . 1 1 . . . 2 Total Hacks 60 | . 16 1 . . 6 . 4 1 10 14 . . 8 Successful 31 | . 5 1 . . 6 . 1 1 5 8 . . 4 Failed 29 | . 11 . . . . . 3 . 5 6 . . 4 Catastrophic 5 | . 2 . . . . . . . 1 1 . . 1 Database Lockouts . | . . . . . . . . . . . . . . Manual 22 | . 5 . . . 1 . 4 . 3 6 . . 3 Terminals 49 | . 16 . . . . . 4 . 9 14 . . 6 Fabricators . | . . . . . . . . . . . . . . Repair Stations . | . . . . . . . . . . . . . . Recycling Units . | . . . . . . . . . . . . . . Scanalyzers . | . . . . . . . . . . . . . . Garrison Access 4 | . . . . . . . . 1 1 . . . 2 Terminal Hacks 23 | . 5 1 . . 6 . . . 3 7 . . 1 Record 6 | . . . . . 5 . . . . 1 . . . Robot Analysis 1 | . . . . . . . . . . 1 . . . Open Door 1 | . . 1 . . . . . . . . . . . Open DSF 1 | . . . . . . . . . 1 . . . . Branch Access Points 2 | . 1 . . . . . . . . 1 . . . Emergency Access Points 2 | . 1 . . . . . . . . . . . 1 Repair Station Index 1 | . . . . . . . . . . 1 . . . Alert Level 1 | . . . . . . . . . . 1 . . . Locate Traps 2 | . 1 . . . . . . . 1 . . . . Recall Investigation 1 | . . . . . . . . . . 1 . . . Hauler Manifests 1 | . 1 . . . . . . . . . . . . Zone Layout 3 | . 1 . . . . . . . 1 1 . . . Derelict Proto ID Bank 1 | . . . . . 1 . . . . . . . . Fabricator Hacks . | . . . . . . . . . . . . . . Repair Station Hacks . | . . . . . . . . . . . . . . Recycling Unit Hacks . | . . . . . . . . . . . . . . Scanalyzer . | . . . . . . . . . . . . . . Garrison Access Hacks 4 | . . . . . . . . 1 1 . . . 2 Seal Access 4 | . . . . . . . . 1 1 . . . 2 Unauthorized Hacks 4 | . . . . . . . 1 . 1 1 . . 1 Terminals 4 | . . . . . . . 1 . 1 1 . . 1 Botnet 4 | . . . . . . . 1 . 1 1 . . 1 Fabricators . | . . . . . . . . . . . . . . Repair Stations . | . . . . . . . . . . . . . . Recycling Units . | . . . . . . . . . . . . . . Scanalyzers . | . . . . . . . . . . . . . . Garrison Access . | . . . . . . . . . . . . . . Data Cores Recovered . | . . . . . . . . . . . . . . Used . | . . . . . . . . . . . . . . Hacking Detections 17 | . 5 . . . . . 2 . 3 4 . . 3 Full Trace Events 1 | . . . . . . . . . . 1 . . . Feedback Events . | . . . . . . . . . . . . . . Feedback Blocked . | . . . . . . . . . . . . . . Robot Schematics Acquired . | . . . . . . . . . . . . . . Robots Built . | . . . . . . . . . . . . . . Authchips . | . . . . . . . . . . . . . . Time . | . . . . . . . . . . . . . . Total Robot Build Rating . | . . . . . . . . . . . . . . Part Schematics Acquired . | . . . . . . . . . . . . . . Parts Built . | . . . . . . . . . . . . . . Authchips . | . . . . . . . . . . . . . . Time . | . . . . . . . . . . . . . . Total Part Build Rating . | . . . . . . . . . . . . . . Parts Repaired . | . . . . . . . . . . . . . . Time . | . . . . . . . . . . . . . . Parts Recycled . | . . . . . . . . . . . . . . Recycled Matter . | . . . . . . . . . . . . . . Retrieved Matter . | . . . . . . . . . . . . . . Retrieved Components . | . . . . . . . . . . . . . . Parts Scanalyzed . | . . . . . . . . . . . . . . Part Schematics Acquired . | . . . . . . . . . . . . . . Parts Damaged . | . . . . . . . . . . . . . . Bothacking | -11 -10 -10 -9 -9 -9 -8 -8 -7 -6 -5 -5 -5 -4 ------------ Run | Yrd Mat Min Mat Min Exi Min Mat Fac Fac Fac Upp Upp Fac Used RIF Installer . | . . . . . . . . . . . . . . Robots Hacked . | . . . . . . . . . . . . . . Non-combat . | . . . . . . . . . . . . . . Combat . | . . . . . . . . . . . . . . Robot Hacks Applied . | . . . . . . . . . . . . . . Relay Couplers Released . | . . . . . . . . . . . . . . Fabnet Peak Effective % . | . . . . . . . . . . . . . . Robots Rewired . | . . . . . . . . . . . . . . Allies Hacked . | . . . . . . . . . . . . . . Hacks Repelled . | . . . . . . . . . . . . . . Allies | -11 -10 -10 -9 -9 -9 -8 -8 -7 -6 -5 -5 -5 -4 -------- Run | Yrd Mat Min Mat Min Exi Min Mat Fac Fac Fac Upp Upp Fac Total Allies 7 | . . 3 . 1 . . . . . 3 . . . Largest Group 3 | . . 3 3 3 1 1 1 . . 3 . . . Highest-Rated Group 93 | . . 40 40 55 16 16 16 . . 93 . . . Highest-Rated Ally 31 | . . 16 16 31 16 16 16 . . 31 . . . Total Orders . | . . . . . . . . . . . . . . Ally Attacks 61 | . . . 15 14 . . . . . 32 . . . Total Damage 935 | . . . 178 205 . . . . . 552 . . . Kills 8 | . . . 4 2 . . . . . 2 . . . Allies Corrupted . | . . . . . . . . . . . . . . Allies Melted . | . . . . . . . . . . . . . . Intel | -11 -10 -10 -9 -9 -9 -8 -8 -7 -6 -5 -5 -5 -4 ------- Run | Yrd Mat Min Mat Min Exi Min Mat Fac Fac Fac Upp Upp Fac Robot Analysis Total 1 | . . . . . . . . . . 1 . . . Derelict Logs Recovered 5 | . . 1 . . . . . . . . 2 2 . Drone Launches . | . . . . . . . . . . . . . . Drone Recoveries . | . . . . . . . . . . . . . . Exploration | -11 -10 -10 -9 -9 -9 -8 -8 -7 -6 -5 -5 -5 -4 ------------- Run | Yrd Mat Min Mat Min Exi Min Mat Fac Fac Fac Upp Upp Fac Turns Passed 9099 | 10 601 698 456 577 586 293 1002 421 954 1240 748 598 915 Spaces Moved 4625 | 5 305 381 166 235 209 116 442 233 471 465 556 478 563 Core 17 | . . . . . . . . . . . . . 17 Treads 1308 | 5 305 267 100 235 209 116 71 . . . . . . Legs 3300 | . . 114 66 . . . 371 233 471 465 556 478 546 Wheels . | . . . . . . . . . . . . . . Hover . | . . . . . . . . . . . . . . Flight . | . . . . . . . . . . . . . . Fastest Speed 50 | 160 160 160 190 240 240 240 160 120 190 120 120 120 50 Average Speed 168 | 160 160 168 245 240 276 240 185 159 190 174 120 120 118 Slowest Speed 320 | 160 160 190 260 240 320 240 240 190 190 193 120 120 190 Overloaded Moves . | . . . . . . . . . . . . . . Propulsion Burnouts . | . . . . . . . . . . . . . . Robots Hopped . | . . . . . . . . . . . . . . Cave-ins Triggered . | . . . . . . . . . . . . . . Exploration Rate (%) 39 | 2 55 93 27 63 60 28 41 6 12 16 78 44 21 Regions Visited 13 Branch Regions 6 Pre-discovered Areas 3 | . . . . . 1 . . . . . 1 1 . Known Exits Taken 5 | . 1 . . . . . . . 1 1 1 1 . Unknown Exits Taken 8 | 1 . 1 1 1 1 1 1 1 . . . . . Scrap Searched 11 | . . 1 . 2 . 2 . . . . 3 3 . Spaces Dug 32 | . . . . . . . 19 . 3 2 . . 8 Terrain Destroyed 237 | . . . . . . 12 134 2 30 11 8 16 24 Melee 20 | . . . . . . . 9 . 3 2 . . 6 Projectile 23 | . . . . . . . 6 2 . 9 1 3 2 AOE 194 | . . . . . . 12 119 . 27 . 7 13 16 Terrain Rammed . | . . . . . . . . . . . . . . Walls Destroyed . | . . . . . . . . . . . . . . Machines Disabled . | . . . . . . . . . . . . . . Actions | -11 -10 -10 -9 -9 -9 -8 -8 -7 -6 -5 -5 -5 -4 --------- Run | Yrd Mat Min Mat Min Exi Min Mat Fac Fac Fac Upp Upp Fac Total 5507 | 6 357 413 192 247 223 126 551 265 516 795 591 494 731 Wait 436 | . 5 4 . 10 2 . 60 6 26 225 6 4 88 Move 4612 | 4 304 380 165 234 208 115 441 232 470 464 555 477 563 Hop . | . . . . . . . . . . . . . . Pick Up 62 | . 9 6 5 . 3 3 3 3 5 11 . 3 11 Fast Attach 25 | . 2 1 . . 1 . 3 4 2 2 3 2 5 Attach 38 | . 1 2 2 . . 3 2 3 2 7 4 2 10 Detach 6 | . . . . . 2 . . 2 . . . 1 1 Swap 41 | 2 2 4 5 1 . . . . 3 17 2 . 5 Drop 49 | . 1 4 4 1 7 2 4 3 1 15 . 1 6 Fire 183 | . 33 12 11 1 . 3 21 8 4 41 21 4 24 Melee 55 | . . . . . . . 17 4 3 13 . . 18 Ram . | . . . . . . . . . . . . . . Kick . | . . . . . . . . . . . . . . Crush . | . . . . . . . . . . . . . . Escape Stasis . | . . . . . . . . . . . . . . Rewire . | . . . . . . . . . . . . . . Trap . | . . . . . . . . . . . . . . Miscellaneous . | . . . . . . . . . . . . . . Route ------- -11/Scrapyard -10/Materials (discovered 2 exits: [*Mat] / *Min) -10/Mines -9/Materials -9/Mines (discovered 2 exits: *Mat / *Exi) -9/Exiles -8/Mines -8/Materials -7/Factory -6/Factory -5/Factory (discovered 4 exits: *Upp x2 / Ext x2) -5/Upper Caves -5/Upper Caves -4/Factory History --------- Turn | Location | Event 4 | -11/Scrapyard | Discovered new exit (range 2) 11 | -11/Scrapyard | Entered Materials 87 | -10/Materials | Identified exit to Mines 302 | -10/Materials | Build established: Mutant 476 | -10/Materials | Discovered new exit (range 14) 612 | -10/Materials | Entered Mines 670 | -10/Mines | Met a Derelict who couldn't figure out how to use a Trap Extractor 754 | -10/Mines | YI-UF0 nonchalantly dropped a Grenade Launcher on the ground 775 | -10/Mines | Core integrity fell below 50% 775 | -10/Mines | Destroyed YI-UF0 1049 | -10/Mines | Learned Materials stockpile data 1225 | -10/Mines | Assisted by bots powering up and referring to "LRC-V3" 1301 | -10/Mines | Discovered new exit (range 6) 1310 | -10/Mines | Entered Materials 1310 | -9/Materials | Accompanied by 3 allies 1310 | -9/Materials | Evolved 2 slots: Utility x1, Weapon x1 1718 | -9/Materials | Discovered new exit (range 12) 1766 | -9/Materials | Entered Mines 1766 | -9/Mines | Accompanied by 2 allies 1848 | -9/Mines | Found a hidden stash of uninstalled traps 1937 | -9/Mines | Build established: Tank 1966 | -9/Mines | Received a Mining Laser from a helpful Derelict 2029 | -9/Mines | Assembled infested the area 2034 | -9/Mines | Assisted by a Guerilla fighting off Assembled 2170 | -9/Mines | Discovered new exit (range 8) 2184 | -9/Mines | Received a Rocket Launcher from a helpful Derelict 2333 | -9/Mines | Deemed a non-threat by the Exiles lab entrance 2333 | -9/Mines | Discovered new exit (range 5) 2343 | -9/Mines | Entered Exiles 2343 | -9/Exiles | Accompanied by 1 ally 2410 | -9/Exiles | Met 8R-AWN 2448 | -9/Exiles | Met EX-HEX 2518 | -9/Exiles | Met EX-BIN 2552 | -9/Exiles | Aligned with FarCom system 2554 | -9/Exiles | Given EX-Vault access code 2609 | -9/Exiles | Opened EX-Vault 2627 | -9/Exiles | Found AWS/Autocannon 2695 | -9/Exiles | Warned to stay clear of 0b10 Research branches 2785 | -9/Exiles | Met EX-DEC 2801 | -9/Exiles | Learned location of Zion (-7) 2897 | -9/Exiles | Discovered new exit (range 12) 2929 | -9/Exiles | Left Exiles lab with AWS/Autocannon 2929 | -9/Exiles | Entered Mines 2929 | -8/Mines | Accompanied by 1 ally 3198 | -8/Mines | Discovered new exit (range 10) 3219 | -8/Mines | Build established: Skirmisher 3222 | -8/Mines | Entered Materials 3222 | -8/Materials | Accompanied by 1 ally 3222 | -8/Materials | Evolved 2 slots: Propulsion x1, Weapon x1 4182 | -8/Materials | Discovered new exit (range 11) 4224 | -8/Materials | Entered Factory 4224 | -7/Factory | Evolved 2 slots: Utility x2 4523 | -7/Factory | Discovered new exit (range 15) 4645 | -7/Factory | Entered another Factory area 4645 | -6/Factory | Evolved 2 slots: Power x1, Utility x1 4865 | -6/Factory | Build established: Hacker-Skirmisher 5073 | -6/Factory | Discovered new exit (range 5) 5598 | -6/Factory | Identified exit to Factory 5599 | -6/Factory | Entered another Factory area 5599 | -5/Factory | Evolved 2 slots: Propulsion x1, Utility x1 6004 | -5/Factory | Identified exit to Upper Caves 6004 | -5/Factory | Identified exit to Extension 6538 | -5/Factory | Build established: Scavenger-Skirmisher 6839 | -5/Factory | Entered Upper Caves 6901 | -5/Upper Caves | Attracted the attention of an 0b10 checkpoint 7038 | -5/Upper Caves | Spotted B-75 Beast 7077 | -5/Upper Caves | Learned location of Armory (-3) 7113 | -5/Upper Caves | Build established: Hacker-Skirmisher 7122 | -5/Upper Caves | Ambushed by wild Derelicts 7136 | -5/Upper Caves | System corruption reached 10% 7181 | -5/Upper Caves | Lost 5 parts (1p3u1w) 7529 | -5/Upper Caves | Learned Factory security intel 7582 | -5/Upper Caves | Discovered new exit (range 5) 7586 | -5/Upper Caves | Identified exit to Upper Caves 7587 | -5/Upper Caves | Entered another Upper Caves area 7614 | -5/Upper Caves | Build established: Scavenger-Mutant 7845 | -5/Upper Caves | Learned Factory garrison access intel 8061 | -5/Upper Caves | Build established: Scavenger-Tank 8177 | -5/Upper Caves | Discovered new exit (range 8) 8184 | -5/Upper Caves | Identified exit to Factory 8185 | -5/Upper Caves | Entered Factory 8185 | -4/Factory | Evolved 2 slots: Utility x2 8187 | -4/Factory | Loaded intel: 4 garrison access locations 8484 | -4/Factory | Lost 4 parts (2p1u1w) 8804 | -4/Factory | Build established: Hacker-Skirmisher 9035 | -4/Factory | Core integrity fell below 50% 9070 | -4/Factory | Core integrity fell below 20% 9089 | -4/Factory | System corruption reached 10% 9100 | -4/Factory | Destroyed by P-70 Sage with High-powered Shock Rifle Last Messages --------------- 09047_ Chain reaction triggered in Imp. Ion Engine. 09047_ Flexi-carbon Leg destroyed. 09051_ System corrupted: Matter fused (-9). 09054_ System Shield destroyed. 09059_ P-70 Sage resets S-27 Virus, system corruption cleaned. 09066_ S-27 Virus destroyed. 09068_ Lrg. Storage Unit destroyed. 09068_ Acquired Mic. Fission Core. 09074_ G1YSL/5GD918 8Q6SLSLJF=XHE0Y 09086_ P-70 Sage resets S-27 Virus, system corruption cleaned. 09088_ Enh. Flexi-carbon Leg destroyed. 09088_ Critical hit (Burn: +37). 09088_ Penetrated by Slug. 09090_ System corrupted: Matter fused (-6). 09096_ Mic. Fission Core destroyed. 09097_ S-27 Virus suffers critical hit (Destroy). Map ----- +----------------------------------------------------+ | ?????????????????????????????????????????????????? | | ?????????????????????????????????????????????????? | | ?????????????????????????????????????????????????? | | ?????????????????????????????????????????????????? | | ?????????????????????????????????????????????????? | | ?????????????????????????????????????????????????? | | ?????????????????????????????????????????????????? | | ?????????????????????????????????????????????????? | | ?????????????????????????????????????????????????? | | ?????????????????????????????????????????????????? | | ?????????????????????????????????????????????????? | | ?????????????????????##??????????????????????????? | | ?????????????????????# ??????????????????????????? | | ?????????????????????# ?????????????????????????? | | ?????????????????????# ????????????????????????? | | ?????????????????????# ??? ???????????????????? | | ?????????????????????# ??? """ ????????????????? | | ?????????????????????# """ """ ???????????????? | | ?????????????????????# """ """ ???????????????? | | ?????????????????????# ????????????????? | | ?????????????????????# """ """ #??????????????? | | ?????????????????????# """ """ #??????????????? | | ?????????????????????# """ """ #??????????????? | | ?????????????????????# #??????????????? | | ?????????????????###+#####+####################+## | | ?????????? k@ | | ?????????? s | | ?????????? s s | | ??????????? s p | | ????????w?? sp | | ????????????#######+###################g | | ??????????????????????????# """ # Y | | ??????????????????????????#= "Y" # | | ???????????????????????????? """ " | | ???????????????????????????? """ # | | ??????????????????????????# """ # | | ??????????????????????????# + ! | | ??????????????????????????# ! ### ####! * | | ??????????????????????????#############?# #??# * | | ????????????????????????????????????????#/#??# | | ????????????????????????????????????????? ??+ | | ????????????????????????????????????????? ??# | | ?????????????????????????????????????????? ??# | | ?????????????????????????????????????????? ?# | | ?????????????????????????????????????????? !?# | | ??????????????????????????????????????????? ?# [ | | ??????????????????????????????????????????? ?# =% | | ?????????????????????????????????????????????# | | ?????????????????????????????????????????????# | | ?????????????????????????????????????????????# | +----------------------------------------------------+ Best States ------------- Heat Dissipation 93 Coolant Potential 100 Energy Generation 55 Energy Capacity 505 Matter Stores 300 Matter Capacity 300 Sight Range 22 Terrain Scan Density 10 ECM Strength 2 Jamming Range 16 Armor Coverage 225 Propulsion Shielding 66 Weapon Cycling 20 Evasion (%) 55 Core Analysis 6 Recoil Reduction 6 Offensive Hacking 10 Defensive Hacking 10 Item Schematics ----------------- None Robot Schematics ------------------ None Fabricated ------------ Nothing Alien Tech Used ----------------- None Achievements -------------- Backstab Maybe Next Time I'll Detach My Launcher No Signal Respectable Loadout Challenges ------------ None Game ------ Seed StructuralBombChronowheel Manual? 0 Play Time 01:38:09 Cumulative 15.5 hours Start 2024.04.22 @ 18:46:08 End 2024.04.22 @ 20:24:48 Sessions 1 Manual Loads 0 Difficulty Rogue Special Mode None Game No. 16 Rogue 16 Adventurer 0 Explorer 0 Win Type - Total 0 Types 0/0/0/0/0/0/0/0/0 Lore% 14 Gallery% 23 Achievement% 20 Wizard Run 0 Options --------- Layout 1 ASCII 0 Keyboard 0 Movement Numpad Keybinds 0 Fullscreen 1 Font 24/Smallcaps Map View 50x40 Zoom Use 0% Tactical HUD 1 Map Filters NONE Filters NONE Steam 1 RUN: 5f6748fa-ea7d-414b-b3b0-6a11fe93bfab